Cogmind - Beta 12 @@@ ROGUE MODE // 2023.03.09 @ 14:28:55 Player: heavymetalmidis Result: Destroyed by D-53 Grenadier with Mini Grenade Launcher Performance ------------- Evolutions (0) 0 Regions Visited (2) 400 Robots Destroyed (6) 30 Value Destroyed (169) 169 Prototype IDs (0) 0 Alien Tech Used (0) 0 Bonus (0) 0 TOTAL SCORE: 599 Bonus ------- None Cogmind --------- Core Integrity 0/250 Matter 270/300 Energy 248/250 System Corruption 0% Temperature Cool (0) Movement Rolling (90) Location -10/Mines Parts ------- > --- POWER (1) -------- Ion Engine > --- PROPULSION (2) --- Wheel Compact Wheel > --- UTILITY (2) ------ Small Storage Unit > --- WEAPON (2) ------- Small Laser > --- INVENTORY (8) ---- Ion Engine Aluminum Leg Small Storage Unit Tractor Beam EM Pulse Gun Light Assault Rifle Peak State ------------ > --- POWER ------------ Light Nuclear Core > --- PROPULSION ------- Aluminum Leg Aluminum Leg > --- UTILITY ---------- Small Storage Unit Tractor Beam > --- WEAPON ----------- Assault Rifle Light Assault Rifle > --- INVENTORY -------- Ion Engine Ion Engine Light Treads Light Treads Wheel Compact Wheel EM Pulse Gun Particle Gun [Rating: 9] Favorites ----------- Power Ion Engine Engine Ion Engine Power Core Light Nuclear Core Propulsion Aluminum Leg Leg Aluminum Leg Wheel Wheel Utility Small Storage Unit Device Tractor Beam Storage Small Storage Unit Weapon Light Assault Rifle Energy Gun Small Laser Ballistic Gun Light Assault Rifle Build | -11 -10 -10 ------- Run | Jun Mat Min Slots Evolved . | . . . Power . | . . . Propulsion . | . . . Utility . | . . . Weapon . | . . . Parts Attached 18 | 7 . 11 Power 3 | 1 . 2 Engine 2 | 1 . 1 Core 1 | . . 1 Reactor . | . . . Propulsion 6 | 2 . 4 Treads . | . . . Leg 4 | 2 . 2 Wheel 2 | . . 2 Hover . | . . . Flight . | . . . Utility 3 | 1 . 2 Device 2 | . . 2 Storage 1 | 1 . . Processor . | . . . Hackware . | . . . Protection . | . . . Artifact . | . . . Weapon 6 | 3 . 3 Energy Gun 4 | 1 . 3 Energy Cannon . | . . . Ballistic Gun 2 | 2 . . Ballistic Cannon . | . . . Launcher . | . . . Special Weapon . | . . . Impact Weapon . | . . . Slashing Weapon . | . . . Piercing Weapon . | . . . Special Melee Weapon . | . . . Unidentified Prototypes . | . . . Parts Lost 6 | . . 6 Power 1 | . . 1 Propulsion 2 | . . 2 Utility 1 | . . 1 Weapon 2 | . . 2 Highest Loss Streak 4 | . . 4 To Critical Strikes . | . . . Average Slot Usage (%) 95 | . 85 95 Engine 7 | . 14 6 Core 6 | . . 6 Leg 26 | . 28 26 Device 11 | . . 11 Storage 14 | . 14 14 Energy Gun 9 | . . 9 Ballistic Gun 18 | . 28 17 Naked Turns . | . . . Heaviest Build 15 | 13 13 15 Greatest Support 26 | 20 20 26 Greatest Overweight (x) 2 | 2 . 1 Average Overweight (x) . | . . . Largest Inventory Capacity 8 | 8 8 8 Average Capacity 7 | 6 8 8 Most Carried 8 | 6 6 8 Average Carried 6 | 3 6 7 Final Capacity 8 | 8 8 8 Final Carried 6 | 6 6 6 Class Distribution -------------------- 75% | Mutant 25% | Scavenger-Mutant Dominant Class ---------------- Mutant | -10/Materials Mutant | -10/Mines Resources | -11 -10 -10 ----------- Run | Jun Mat Min Matter Collected 405 | 192 . 213 Remotely 91 | . . 91 Salvage Created 270 | . . 270 Parts 14 | . . 14 Haulers Intercepted . | . . . Recyclers Shooed . | . . . Parts Field Recycled . | . . . Retrieved Matter . | . . . Parts Self-Destructed . | . . . Prevented . | . . . Kills | -11 -10 -10 ------- Run | Jun Mat Min Combat Hostiles Destroyed 4 | . . 4 Guns 4 | . . 4 Classes Destroyed 3 | . . 3 Worker 1 | . . 1 Recycler 1 | . . 1 Grunt 4 | . . 4 Best Kill Streak 4 | . . 4 Combat Bots Only 2 | . . 2 Max Kills in Single Turn 1 | . . 1 Gunslinging . | . . . Exploded . | . . . Melee . | . . . Uniques/NPCs Destroyed . | . . . Combat | -11 -10 -10 -------- Run | Jun Mat Min Damage Taken 1036 | . 29 1007 Core 256 | . . 256 Absorbed by Shields . | . . . Core Remaining (%) 100 | 100 . . Volleys Fired 28 | 4 . 24 Largest 2 | 1 . 2 Hottest 105 | 40 . 105 Shots Fired 50 | 4 . 46 Gun 50 | 4 . 46 Cannon . | . . . Launcher . | . . . Special . | . . . Kinetic 39 | . . 39 Thermal 2 | . . 2 Explosive . | . . . Electromagnetic 9 | 4 . 5 Robot Hit Streak 14 | . . 14 Robot Miss Streak 4 | 4 . 1 Penetration Max . | . . . Secondary Targets . | . . . Shots Hit Robots 35 | . . 35 Core Hits 14 | . . 14 Critical Kills . | . . . Critical Parts Destroyed . | . . . Critical Strikes . | . . . Melee Attacks . | . . . Impact . | . . . Slashing . | . . . Piercing . | . . . Sneak Attacks . | . . . Combat Hostiles . | . . . Follow-up Attacks . | . . . Damage Inflicted 382 | . . 382 Guns 382 | . . 382 Cannons . | . . . Explosions . | . . . Melee . | . . . Ramming . | . . . Kinetic 312 | . . 312 Thermal 18 | . . 18 Explosive . | . . . Electromagnetic 52 | . . 52 Impact . | . . . Slashing . | . . . Piercing . | . . . Highest Corruption . | . . . Average Corruption . | . . . Corruption Purged . | . . . Corruption Blocked . | . . . Overload Shots . | . . . Overflow Damage . | . . . Projectiles . | . . . Explosions . | . . . Melee . | . . . Knockbacks . | . . . Impact . | . . . Kinetic . | . . . Secondary . | . . . Self-Inflicted Damage . | . . . Shots . | . . . Rammed . | . . . Targets Rammed . | . . . Kicked . | . . . Crushed . | . . . Highest Temperature 51 | 20 . 51 Average Temperature 17 | 20 . 17 Received Heat Transfer 207 | . . 207 Siege Activations . | . . . Robots Corrupted . | . . . Combat Hostiles . | . . . Parts Fried . | . . . Impact Corruptions . | . . . Robots Melted . | . . . Combat Hostiles . | . . . Parts Melted . | . . . Heat Transferred 37 | . . 37 Parts Sabotaged . | . . . Parts Stolen . | . . . Parts Stripped . | . . . Power Chain Reactions . | . . . Missiles Intercepted . | . . . Alert | -11 -10 -10 ------- Run | Jun Mat Min Peak Influence 90 | . . 90 Initial . | . . . Average 27 | . . 32 Maximum Alert Level . | . . . Low Security (%) 100 | 100 100 100 Level 1 . | . . . Level 2 . | . . . Level 3 . | . . . Level 4 . | . . . Level 5 . | . . . High Security . | . . . Max Security . | . . . Squads Dispatched . | . . . Investigation . | . . . Extermination . | . . . Reinforcement . | . . . Assault . | . . . Garrison . | . . . Intercept . | . . . Searches Triggered . | . . . Construction Impeded . | . . . Haulers Reinforced . | . . . Active Scanning Responses . | . . . Cargo Convoy Interrupts . | . . . Stealth | -11 -10 -10 --------- Run | Jun Mat Min Distress Signals . | . . . Communications Jammed . | . . . Distress Signals . | . . . Times Spotted 13 | . 2 11 Peak Tracking Total 7 | . 3 7 Tactical Retreats . | . . . Traps | -11 -10 -10 ------- Run | Jun Mat Min Traps Triggered . | . . . Indirectly . | . . . Trap Hack Attempts . | . . . Triggered . | . . . Disarmed . | . . . Reprogrammed . | . . . Reused . | . . . Traps Extracted . | . . . Installed . | . . . Triggered . | . . . Machines | -11 -10 -10 ---------- Run | Jun Mat Min Machines Disabled . | . . . Max in Single Turn . | . . . Machines Repaired . | . . . Machines Sabotaged . | . . . Overloaded Fab Kills . | . . . Hacking | -11 -10 -10 --------- Run | Jun Mat Min Machines Accessed . | . . . Terminals . | . . . Fabricators . | . . . Repair Stations . | . . . Recycling Units . | . . . Scanalyzers . | . . . Garrison Access . | . . . Total Hacks . | . . . Successful . | . . . Failed . | . . . Catastrophic . | . . . Database Lockouts . | . . . Manual . | . . . Terminals . | . . . Fabricators . | . . . Repair Stations . | . . . Recycling Units . | . . . Scanalyzers . | . . . Garrison Access . | . . . Terminal Hacks . | . . . Fabricator Hacks . | . . . Repair Station Hacks . | . . . Recycling Unit Hacks . | . . . Scanalyzer . | . . . Garrison Access Hacks . | . . . Unauthorized Hacks . | . . . Terminals . | . . . Fabricators . | . . . Repair Stations . | . . . Recycling Units . | . . . Scanalyzers . | . . . Garrison Access . | . . . Data Cores Recovered . | . . . Used . | . . . Hacking Detections . | . . . Full Trace Events . | . . . Feedback Events . | . . . Feedback Blocked . | . . . Robot Schematics Acquired . | . . . Robots Built . | . . . Authchips . | . . . Time . | . . . Total Robot Build Rating . | . . . Part Schematics Acquired . | . . . Parts Built . | . . . Authchips . | . . . Time . | . . . Total Part Build Rating . | . . . Parts Repaired . | . . . Time . | . . . Parts Recycled . | . . . Recycled Matter . | . . . Retrieved Matter . | . . . Retrieved Components . | . . . Parts Scanalyzed . | . . . Part Schematics Acquired . | . . . Parts Damaged . | . . . Bothacking | -11 -10 -10 ------------ Run | Jun Mat Min Used RIF Installer . | . . . Robots Hacked . | . . . Non-combat . | . . . Combat . | . . . Robot Hacks Applied . | . . . Relay Couplers Released . | . . . Fabnet Peak Effective % . | . . . Robots Rewired . | . . . Allies Hacked . | . . . Hacks Repelled . | . . . Allies | -11 -10 -10 -------- Run | Jun Mat Min Total Allies . | . . . Largest Group . | . . . Highest-Rated Group . | . . . Highest-Rated Ally . | . . . Total Orders . | . . . Ally Attacks . | . . . Total Damage . | . . . Kills . | . . . Allies Corrupted . | . . . Allies Melted . | . . . Intel | -11 -10 -10 ------- Run | Jun Mat Min Robot Analysis Total . | . . . Derelict Logs Recovered 1 | . . 1 Drone Launches . | . . . Drone Recoveries . | . . . Exploration | -11 -10 -10 ------------- Run | Jun Mat Min Turns Passed 738 | 89 21 628 Spaces Moved 491 | 60 18 413 Core 14 | 14 . . Treads . | . . . Legs 455 | 46 18 391 Wheels 22 | . . 22 Hover . | . . . Flight . | . . . Fastest Speed 50 | 50 120 90 Average Speed 117 | 107 120 119 Slowest Speed 190 | 150 120 190 Overloaded Moves . | . . . Propulsion Burnouts . | . . . Robots Hopped . | . . . Cave-ins Triggered . | . . . Exploration Rate (%) 22 | 5 5 56 Regions Visited 2 Branch Regions 1 Pre-discovered Areas 1 | . . 1 Known Exits Taken . | . . . Unknown Exits Taken 2 | 1 1 . Scrap Searched . | . . . Spaces Dug . | . . . Terrain Destroyed . | . . . Melee . | . . . Projectile . | . . . AOE . | . . . Terrain Rammed . | . . . Walls Destroyed . | . . . Machines Disabled . | . . . Actions | -11 -10 -10 --------- Run | Jun Mat Min Total 602 | 80 17 505 Wait 50 | . . 50 Move 489 | 59 17 413 Hop . | . . . Pick Up 13 | 9 . 4 Fast Attach 5 | 3 . 2 Attach 8 | 4 . 4 Detach 2 | 1 . 1 Swap 5 | . . 5 Drop 2 | . . 2 Fire 28 | 4 . 24 Melee . | . . . Ram . | . . . Kick . | . . . Crush . | . . . Escape Stasis . | . . . Rewire . | . . . Trap . | . . . Miscellaneous . | . . . Route ------- -11/Junkyard -10/Materials -10/Mines (discovered 2 exits: [*Mat x2]) History --------- Turn | Location | Event 8 | -11/Junkyard | Discovered new exit (range 15) 90 | -11/Junkyard | Entered Materials 90 | -10/Materials | Discovered new exit (range 8) 111 | -10/Materials | Entered Mines 233 | -10/Mines | Discovered new exit (range 7) 317 | -10/Mines | Build established: Mutant 439 | -10/Mines | Discovered new exit (range 9) 462 | -10/Mines | Learned location of Zion (-7) 669 | -10/Mines | Assembled infested the area 710 | -10/Mines | Core integrity fell below 50% 717 | -10/Mines | Core integrity fell below 20% 739 | -10/Mines | Destroyed by D-53 Grenadier with Mini Grenade Launcher Last Messages --------------- 00700_ as-53166 destroyed. 00700_ as-73157 destroyed. 00700_ as-15878 destroyed. 00703_ The unstable cave ceiling collapses. 00703_ Aluminum Leg destroyed. 00710_ The unstable cave ceiling collapses. 00711_ Particle Gun destroyed. 00711_ Heat Sink destroyed. 00711_ Aluminum Leg destroyed. 00712_ D-53 Grenadier suffers critical hit (Destroy). 00714_ The unstable cave ceiling collapses. 00716_ U-05 Engineer lays Concrete. 00717_ The unstable cave ceiling collapses. 00718_ U-05 Engineer lays Concrete. 00718_ K-01 Serf destroyed. 00720_ The unstable cave ceiling collapses. 00721_ U-05 Engineer lays Concrete. 00723_ The unstable cave ceiling collapses. 00723_ U-05 Engineer builds a Wall. 00726_ The unstable cave ceiling collapses. Map ----- +----------------------------------------------------+ | | | | | | | | | | | | | | | | | | | | | | | | | | | | | ??????????????????????????????????????? | | ??????????????????????############????? | | ??????????????????????# #????? | | ?????????????########?# """ #????? | | ?????????????# #?# """ #????? | | #????######### #?# < """ #????? | | ####?# #?# #????? | | ### ####### #?####### ###????? | | ## #?????# #???????# #??????? | | # ##????# #???##### #??????? | | #????#### ###???# #??????? | | ### #???????# #######@######??????? | | ####?# #???????# k #???????????? | | #????# #???????######### #???????????? | | #????# #???????????????#d#???????????? | | #????# #???????????????# #???????????? | | #????# #?????????####### #???????????? | | #????# #?????????# #???????????? | | #????# #?????????# ######???????????? | | #????# ########??# #????????????????? | | ##????# #??# #????????????????? | | #?????####### #??# #????????????????? | | ##??????????# #??# #????????????????? | | #??????????# ####%*###??????????????? | | #??????????# ## = #??????????????? | | #??????????# ## #??????????????? | | ##?????????## # ##??????????????? | | #?????????## % #??????????????? | | ??????????# #??????????????? | | ??????????# #?????????????? | | ########### #?????????????? | | # # # ##?????????????? | | ## #??????????????? | | # #??????????????? | | ##??????????????? | | % #???????????????? | +----------------------------------------------------+ Best States ------------- Heat Dissipation 35 Energy Generation 14 Energy Capacity 250 Matter Stores 300 Matter Capacity 300 Sight Range 16 Terrain Scan Density 10 Evasion (%) 55 Item Schematics ----------------- None Robot Schematics ------------------ None Fabricated ------------ Nothing Alien Tech Used ----------------- None Achievements -------------- None Challenges ------------ None Game ------ Seed RegenerativeAlphaCoupler Manual? 0 Play Time 00:19:24 Cumulative 38.1 hours Start 2023.03.09 @ 14:08:24 End 2023.03.09 @ 14:28:55 Sessions 1 Manual Loads 0 Difficulty Rogue Special Mode None Game No. 12 Rogue 4 Adventurer 2 Explorer 6 Win Type - Total 0 Types 0/0/0/0/0/0/0/0/0 Lore% 20 Gallery% 27 Achievement% 26 Wizard Run 0 Options --------- ASCII 0 Keyboard 1 Movement Numpad Keybinds 0 Fullscreen 2 Font 18/Smallcaps Map View 76x50 Tactical HUD 1 Map Filters NONE Filters NONE Steam 1 RUN: 53c32d8d-13a0-446b-91c1-6ccdb4c49988